bitfinex-derivatives/quotes_ETHF0:USTF0_20260119
["timestamp","ask_amount","ask_price","bid_price","bid_amount"]
[1768824241774,0.50534949,3221.0,3220.5,0.15535]
[1768824241973,10.82528736,3221.2,3220.5,0.15535]
[1768824241974,0.50534949,3220.8,3220.7,0.0140269]
[1768824242473,11.33063685,3220.8,3220.7,0.0140269]
[1768824244772,0.50534949,3220.7,3220.0,40.8]
[1768824244971,0.50534949,3220.7,3219.9,0.15538]
[1768824245270,0.50534949,3220.7,3220.0,2.662]
[1768824245772,0.50534949,3220.5,3220.0,2.663]
[1768824245961,0.50534949,3220.5,3219.3,0.00222409]
[1768824246164,0.50534949,3220.5,3219.4,5.77]
[1768824246473,0.50534949,3220.5,3219.5,40.8]
[1768824247070,0.50534949,3220.5,3219.9,0.15538]
[1768824247474,0.50534949,3220.3,3219.9,0.15538]
[1768824247969,0.50534949,3220.2,3219.9,0.15538]
[1768824248370,11.33063685,3220.2,3219.9,0.15538]
[1768824249586,10.82528736,3220.2,3219.9,0.15538]
[1768824250575,1.66967983,3221.1,3219.9,0.15538]
[1768824250781,10.50443736,3220.6,3219.9,0.15538]
[1768824251080,10.50443736,3220.7,3219.8,2.666]
[1768824251276,1.66967983,3221.5,3220.3,0.15536]
[1768824251479,4.33634949,3221.4,3220.5,0.15535]
[1768824251871,10.50443736,3221.0,3220.5,0.15535]
[1768824252379,9.77159736,3220.8,3220.6,2.676]
[1768824252568,9.77159736,3221.0,3220.6,2.676]
[1768824252772,9.77159736,3220.9,3220.6,2.676]
[1768824253280,9.41291736,3220.8,3220.6,2.676]
[1768824253577,9.41291736,3220.9,3220.6,2.676]
[1768824253968,0.50534949,3221.3,3220.6,1.36400001]
[1768824254171,9.88381022,3220.9,3220.6,2.677]
[1768824254367,0.50534949,3220.9,3220.6,2.677]
[1768824254578,0.50534949,3220.9,3220.7,0.01691052]
[1768824255173,9.37846073,3220.8,3220.7,0.01691052]
[1768824256286,9.88381022,3220.8,3220.6,2.677]
[1768824256479,9.37846073,3220.7,3220.5,0.15535]
[1768824256677,0.50534949,3221.2,3220.5,2.83135]
[1768824257074,0.50534949,3221.2,3220.6,0.15534]
[1768824257278,3.831,3221.4,3220.7,0.15534]
[1768824257886,0.50534949,3221.7,3220.7,0.15534]
[1768824258185,0.50534949,3221.5,3220.7,0.15534]
[1768824259485,0.50534949,3221.5,3220.2,0.15536]
[1768824259983,0.50534949,3221.5,3220.2,2.83036]
[1768824260188,0.50534949,3221.5,3220.8,0.01859637]
[1768824261386,0.50534949,3221.5,3220.2,2.83036]
[1768824262189,0.50534949,3221.5,3220.2,0.15536]
[1768824262380,0.50534949,3221.5,3220.2,2.82936]
[1768824263088,0.50534949,3221.5,3220.3,0.15536]
[1768824263290,1.63828746,3221.4,3220.4,0.15536]
[1768824263589,1.11852284,3221.3,3220.4,0.15536]
[1768824263788,1.11852284,3221.2,3220.4,0.15536]
[1768824263989,1.11852284,3221.1,3220.4,0.15536]
[1768824264291,0.51976462,3221.4,3220.4,0.15536]
[1768824264483,1.11852039,3221.3,3220.4,0.15536]
[1768824264684,1.11852039,3221.2,3220.4,0.15536]
[1768824264989,1.11852039,3221.1,3220.4,0.15536]
[1768824265189,0.51976462,3221.4,3220.4,0.15536]
[1768824265390,1.11852064,3221.3,3220.4,0.15536]
[1768824265589,1.11852064,3221.2,3220.4,0.15536]
[1768824265888,1.11852064,3221.1,3220.4,0.15536]
[1768824266090,0.51976462,3221.4,3220.7,0.01703988]
[1768824266291,0.51976462,3221.2,3221.0,0.03407976]
[1768824266490,1.11851986,3221.1,3221.0,0.03407976]
[1768824266891,1.11851986,3221.1,3221.0,0.04241078]
[1768824268291,1.63828448,3221.1,3221.0,0.04241078]
[1768824270777,1.11851986,3221.1,3221.0,0.04241078]
[1768824272901,1.11851986,3221.1,3221.0,0.06857301]
[1768824273191,1.11851986,3221.1,3221.0,0.08485552]
[1768824273892,1.63828448,3221.1,3220.6,0.15535]
[1768824274087,1.11851986,3221.0,3220.6,0.15535]
[1768824274288,0.51976462,3221.1,3220.6,0.15535]
[1768824274486,1.11851358,3221.0,3220.6,0.15535]
[1768824274686,0.51976462,3221.1,3220.6,0.15535]
[1768824274885,1.11851358,3221.0,3220.6,0.15535]
[1768824275100,0.51976462,3221.1,3220.6,0.15535]
[1768824275398,1.11851428,3221.0,3220.6,0.15535]
[1768824275600,0.51976462,3221.1,3220.6,0.15535]
[1768824275800,1.1185145,3221.0,3220.6,0.15535]
[1768824276094,0.51976462,3221.1,3220.6,0.15535]
[1768824276292,1.1185145,3221.0,3220.6,0.15535]
[1768824276492,0.51976462,3221.1,3220.6,0.15535]
[1768824276692,1.1185145,3221.0,3220.6,0.15535]
[1768824276999,0.51976462,3221.1,3220.6,0.15535]
[1768824277297,1.1185145,3221.0,3220.6,0.15535]
[1768824277498,0.51976462,3221.1,3220.6,0.15535]
[1768824277688,1.1185145,3221.0,3220.6,0.15535]
[1768824277886,0.51976462,3221.1,3220.6,0.15535]
[1768824278085,1.1185145,3221.0,3220.6,0.15535]
[1768824278297,0.51976462,3221.1,3220.6,0.15535]
[1768824278501,1.63827911,3221.0,3220.6,0.15535]
[1768824278699,0.51976462,3221.0,3220.6,0.15535]
[1768824280303,1.118515,3220.9,3220.6,0.15535]
[1768824280494,0.51976462,3221.0,3220.6,0.15535]
[1768824280694,1.11851474,3220.9,3220.6,0.15535]
[1768824280894,0.51976462,3221.0,3220.6,0.15535]
[1768824281096,1.11851474,3220.9,3220.6,0.15535]
[1768824281297,0.51976462,3221.0,3220.6,0.15535]
[1768824281591,1.62212123,3220.9,3220.6,0.15535]
[1768824281791,0.50360603,3220.8,3220.0,1.24695953]
[1768824282203,0.50360603,3221.3,3220.0,1.24695953]
[1768824282400,1.62212293,3221.2,3220.6,0.15534]
[1768824282612,1.75056556,3220.7,3220.0,0.15537]
[1768824282906,1.1185169,3220.6,3220.0,0.15537]
[1768824284005,2.17328586,3221.2,3220.1,1.40232953]
[1768824284208,4.94959276,3221.1,3220.1,1.40232953]
[1768824284396,1.11859276,3221.0,3220.1,1.40232953]
[1768824285205,1.62219879,3221.0,3220.1,0.15537]
[1768824285406,0.50360603,3220.8,3220.1,0.15537]
[1768824285606,1.62219879,3220.7,3220.1,0.15537]
[1768824285806,0.50360603,3220.5,3220.1,0.15537]
[1768824286006,1.11859276,3220.4,3220.1,0.15537]
[1768824286208,0.50360603,3220.5,3220.1,0.15537]
[1768824287009,0.50360603,3220.5,3219.7,2.67]
[1768824287194,1.11869937,3220.4,3219.7,2.67]
[1768824287399,0.50360603,3220.5,3219.7,2.67]
[1768824287598,1.11871004,3220.4,3219.7,2.67]
[1768824287799,1.11871004,3220.3,3219.7,2.67]
[1768824288008,0.50360603,3220.5,3219.7,2.67]
[1768824288210,1.11871049,3220.4,3219.7,2.675]
[1768824288506,0.50360603,3220.5,3219.6,2.82939]
[1768824288701,1.11871225,3220.4,3219.6,2.82939]
[1768824288903,0.50360603,3220.5,3219.6,2.82939]
[1768824289101,1.118712,3220.4,3219.6,2.82939]
[1768824289401,0.50360603,3220.5,3219.6,2.82939]
[1768824289601,1.11871192,3220.4,3219.6,2.82939]
[1768824289801,0.50360603,3220.5,3220.0,0.03343123]
[1768824290004,1.11871192,3220.4,3220.0,0.03343123]
[1768824290199,0.50360603,3220.5,3220.0,0.03343123]
[1768824290398,1.11871021,3220.4,3220.2,0.04244474]
[1768824290599,0.50360603,3220.5,3220.0,0.15538]
[1768824290808,1.11874357,3220.4,3220.0,0.15538]
[1768824291002,0.50360603,3220.5,3220.0,0.15538]
[1768824291205,1.1187446,3220.4,3220.0,0.15538]
[1768824291405,0.50360603,3220.5,3220.0,0.15538]
[1768824291602,1.11874487,3220.4,3220.0,0.15538]
[1768824291803,0.50360603,3220.5,3220.0,0.15538]
[1768824292110,1.11874038,3220.4,3220.0,0.15538]
[1768824292313,0.50360603,3220.5,3220.0,0.15538]
[1768824292508,1.11874512,3220.4,3220.0,0.15538]
[1768824292711,0.50360603,3220.4,3220.0,0.15538]
[1768824294615,4.29703419,3220.8,3220.0,0.15538]
[1768824294816,1.1187448,3220.7,3220.0,1.40233953]
[1768824295113,1.1187448,3220.6,3220.0,0.15538]
[1768824295315,1.1187448,3220.5,3220.0,0.15538]
[1768824295514,4.29703419,3220.8,3220.0,0.15538]
[1768824295711,1.11869144,3220.7,3220.0,0.15538]
[1768824296017,1.11869144,3220.6,3220.0,0.15538]
[1768824296210,1.11869144,3220.5,3220.0,0.15538]
[1768824296410,4.29703419,3220.8,3220.0,0.15538]
[1768824296611,1.11869119,3220.7,3220.0,0.15538]
[1768824296919,1.11869119,3220.6,3220.3,0.012102]
[1768824297215,1.11869119,3220.5,3220.3,0.012102]
[1768824297415,0.46603419,3220.7,3220.3,0.012102]
[1768824297623,1.11869094,3220.6,3220.3,0.012102]
[1768824297806,1.11869094,3220.5,3220.4,0.016136]
[1768824298306,1.11869094,3220.5,3220.4,0.02017]
[1768824298507,1.11869094,3220.5,3220.4,0.024204]
[1768824299217,1.11869094,3220.5,3220.4,0.028238]
[1768824299619,1.11869094,3220.5,3220.4,0.032272]
[1768824300118,0.74381094,3220.5,3220.3,0.15536]
[1768824300310,3.831,3220.8,3220.3,0.15536]
[1768824301307,3.831,3220.8,3220.5,0.01017274]
[1768824301811,4.29703419,3221.2,3220.5,0.01017274]
[1768824302011,3.831,3221.2,3220.7,0.15534]
[1768824302419,0.46603419,3221.1,3220.7,0.15534]
[1768824302806,0.46603419,3221.1,3220.0,1.24695953]
[1768824303016,0.46603419,3221.1,3220.2,0.15536]
[1768824306818,3.831,3221.2,3220.3,1.24695953]
[1768824307020,3.831,3221.2,3220.6,1.40229953]
[1768824307215,3.831,3221.2,3220.6,0.15534]
[1768824307612,4.29703419,3221.5,3220.6,0.15534]
[1768824307816,0.46603419,3221.4,3220.6,0.15534]
[1768824308925,0.46603419,3221.4,3220.7,0.15534]
[1768824309124,3.831,3221.5,3220.7,0.15534]
[1768824312321,1.11830479,3221.4,3220.7,0.15534]
[1768824312523,1.11830479,3221.3,3220.7,0.15534]
[1768824312723,1.11830479,3221.2,3220.7,0.15534]
[1768824313025,3.831,3221.5,3221.0,0.15533]
[1768824313225,1.11813561,3221.4,3221.0,0.15533]
[1768824313526,3.831,3221.5,3221.0,0.15533]
[1768824313824,1.11412095,3221.4,3221.0,0.15533]
[1768824314024,3.831,3221.5,3221.0,0.15533]
[1768824314225,0.00357302,3221.9,3221.2,1.40226953]
[1768824315136,0.00357302,3221.9,3221.2,0.15531]
[1768824316023,0.00357302,3221.9,3221.2,1.40226953]
[1768824316224,0.46603419,3222.3,3221.3,0.15531]
[1768824316625,0.46603419,3222.3,3221.4,0.15531]
[1768824316818,0.46603419,3222.3,3221.5,1.40225953]
[1768824317224,0.46945852,3222.3,3221.5,1.40225953]
[1768824318527,0.00342433,3222.3,3221.5,1.40225953]
[1768824319230,0.00342433,3222.3,3221.6,0.1553]
[1768824319433,0.46603419,3222.7,3221.7,0.15529]
[1768824320422,0.46850163,3222.7,3221.7,0.15529]
[1768824326238,1.53399421,3222.6,3221.7,0.15529]
[1768824326429,0.42999439,3222.6,3221.7,0.15529]
[1768824330837,0.42999439,3222.4,3221.6,0.00247582]
[1768824331043,0.42999439,3222.2,3221.1,0.15532]
[1768824331237,0.42999439,3222.0,3221.1,0.15532]
[1768824332145,0.42999439,3222.0,3221.1,0.15906972]
[1768824334542,1.10303912,3221.9,3221.1,0.15906972]
[1768824334741,0.42999439,3222.0,3221.1,0.15906972]
[1768824334946,1.10303997,3221.9,3221.1,0.15906972]
[1768824335152,0.42999439,3222.0,3221.1,0.15906972]
[1768824335348,1.10329869,3221.9,3221.1,0.15906972]
[1768824335550,0.42999439,3221.7,3221.1,0.00374972]
[1768824335748,4.26099439,3221.6,3220.5,0.15535]
[1768824336651,4.26099439,3221.6,3220.5,0.15803077]
[1768824338255,4.26099439,3221.6,3220.6,0.15535]
[1768824339850,0.41212753,3221.4,3220.6,0.15535]
[1768824340055,1.1040525,3221.3,3220.6,0.15535]
[1768824341048,1.51618003,3221.3,3220.6,0.15535]
[1768824341249,1.1040525,3221.2,3220.6,0.15535]
[1768824341551,0.41212753,3221.3,3220.6,0.15535]
[1768824341753,1.10399894,3221.2,3220.6,0.15535]
[1768824341957,0.41212753,3221.3,3220.6,0.15535]
[1768824342149,1.1039991,3221.2,3220.6,0.15535]
[1768824342353,0.41212753,3221.3,3220.6,0.15535]
[1768824342553,1.10391929,3221.2,3220.6,0.15535]
[1768824342758,0.41212753,3221.3,3220.6,0.15535]
[1768824342958,1.10391929,3221.2,3220.6,0.15535]
[1768824343161,0.41212753,3221.3,3220.6,0.15535]
[1768824343458,1.1037988,3221.2,3220.6,0.15535]
[1768824343659,0.41212753,3221.3,3220.6,0.15535]
[1768824343957,1.1037988,3221.2,3220.6,0.15535]
[1768824344158,0.41212753,3221.3,3220.6,0.15535]
[1768824344358,0.41212753,3221.3,3219.0,3.109]
[1768824344554,1.1037117,3221.2,3220.0,2.84437]
[1768824344749,1.1037117,3221.1,3220.1,0.15537]
[1768824344953,0.41212753,3221.3,3220.1,0.15537]
[1768824345145,1.1036977,3221.2,3220.1,0.15537]
[1768824345349,0.41212753,3221.3,3220.1,0.15866668]
[1768824345546,1.10341263,3221.2,3220.3,0.15536]
[1768824345753,2.08354664,3221.7,3220.3,0.15536]
[1768824345951,1.10341193,3221.6,3220.3,0.15536]
[1768824346153,1.10341193,3221.5,3220.3,0.15536]
[1768824346354,1.10341193,3221.4,3220.3,0.15536]
[1768824346656,1.10341193,3221.3,3220.3,0.15536]
[1768824346857,1.10341193,3221.2,3220.3,0.15536]
[1768824347161,0.41212753,3221.6,3220.3,0.15536]
[1768824347348,1.10293059,3221.5,3220.3,0.15536]
[1768824347555,1.10293059,3221.4,3220.3,0.15536]
[1768824347758,1.10293059,3221.3,3220.3,0.15536]
[1768824348055,1.10293059,3221.2,3220.3,0.15536]
[1768824348255,0.41212753,3221.6,3220.3,0.15536]
[1768824348456,1.1027297,3221.5,3220.3,0.15536]
[1768824348755,1.1027297,3221.4,3220.3,0.15536]
[1768824348953,1.1027297,3221.3,3220.3,0.15536]
[1768824349153,1.1027297,3221.2,3220.3,0.15536]
[1768824349353,0.41212753,3221.6,3220.3,0.15536]
[1768824349558,1.10255908,3221.5,3220.3,0.15536]
[1768824349856,1.10255908,3221.4,3220.3,0.15536]
[1768824350060,1.10255908,3221.3,3220.3,0.15536]
[1768824350258,0.41212753,3221.6,3220.3,0.15536]
[1768824350451,1.10246833,3221.5,3220.3,0.15536]
[1768824350653,1.10246833,3221.4,3220.3,0.15536]
[1768824350847,1.51459586,3221.4,3220.3,0.15536]
[1768824351154,0.41212753,3221.8,3220.7,0.15534]
[1768824351347,1.10235634,3221.7,3220.7,0.15534]
[1768824351552,0.41212753,3221.8,3220.7,0.15534]
[1768824351747,1.10232456,3221.7,3220.7,0.15534]
[1768824351958,0.41212753,3221.8,3220.7,0.15534]
[1768824352165,1.10232368,3221.7,3220.7,0.15534]
[1768824352353,0.41212753,3222.3,3220.3,0.39878549]
[1768824352658,1.5145005,3222.2,3221.0,0.15533]
[1768824352858,1.10237297,3222.1,3221.0,0.15533]
[1768824353057,0.41212753,3222.2,3221.2,0.15532]
[1768824353260,1.10252105,3222.1,3221.2,0.15532]
[1768824353564,0.41212753,3222.2,3221.2,0.15532]
[1768824353767,1.10249618,3222.1,3221.2,0.15532]
[1768824353956,0.41212753,3222.2,3221.2,0.15532]
[1768824354255,1.10249591,3222.1,3221.2,0.15532]
[1768824354455,0.41212753,3222.2,3221.2,0.15532]
[1768824354656,1.10266757,3222.1,3221.2,0.15532]
[1768824354854,0.41212753,3222.2,3221.2,0.15532]
[1768824355054,1.10266739,3222.1,3221.2,0.15532]
[1768824355254,0.41212753,3222.2,3221.2,0.15532]
[1768824355458,1.10284628,3222.1,3221.2,0.15532]
[1768824355649,0.41212753,3222.2,3221.2,0.15532]
[1768824355855,1.10284628,3222.1,3221.2,0.15532]
[1768824356065,0.41212753,3222.2,3221.2,0.15532]
[1768824356357,1.49135828,3222.1,3221.2,0.15532]
[1768824356563,0.38831855,3222.1,3221.2,0.15532]
[1768824357564,3.831,3222.0,3221.2,0.15532]
[1768824357766,4.21931855,3222.0,3221.2,0.15532]
[1768824358264,0.38831855,3221.9,3221.2,0.15532]
[1768824358564,0.38831855,3221.9,3220.6,0.15534]
[1768824358758,1.10353665,3221.8,3220.7,0.15534]
[1768824358958,0.38831855,3221.9,3220.7,0.15534]
[1768824359255,1.10351592,3221.8,3220.7,0.15534]
[1768824359455,0.38831855,3221.9,3220.7,0.15534]
[1768824359651,1.10379534,3221.8,3220.7,0.15534]
[1768824359850,0.38831855,3221.9,3220.7,0.15534]
[1768824360066,1.1037955,3221.8,3220.7,0.15534]
[1768824360265,0.38831855,3221.9,3220.7,0.15534]
[1768824360468,1.104111,3221.8,3220.7,0.15534]
[1768824360660,0.38831855,3221.9,3220.7,0.15534]
[1768824360861,1.10411117,3221.8,3220.7,0.15534]
[1768824361062,0.38831855,3221.9,3220.7,0.15534]
[1768824361257,1.10429912,3221.8,3220.7,0.15534]
[1768824361469,0.38831855,3221.9,3220.7,0.15534]
[1768824361667,1.10429894,3221.8,3220.7,0.15534]
[1768824361966,0.38831855,3221.9,3220.7,0.15534]
[1768824362169,1.10429875,3221.8,3220.8,0.15533]
[1768824362367,1.10429875,3221.7,3220.9,0.15533]
[1768824362565,0.38831855,3221.9,3220.9,0.15533]
[1768824362766,1.10435737,3221.8,3220.9,0.15533]
[1768824362970,1.10435737,3221.7,3220.9,0.15533]
[1768824363171,0.38831855,3221.9,3220.9,0.15533]
[1768824363470,4.93552983,3221.8,3220.9,0.15533]
[1768824363667,1.10452983,3221.7,3220.9,0.15533]
[1768824365270,1.10452983,3221.7,3221.1,0.15532]
[1768824365473,3.831,3221.8,3221.1,0.15532]
[1768824369174,3.831,3222.2,3221.1,0.15532]
[1768824370178,3.831,3222.2,3220.7,1.62947706]
[1768824370378,3.831,3222.2,3220.8,0.40208398]
[1768824370769,3.831,3222.2,3221.3,0.15531]
[1768824374077,3.831,3222.2,3221.4,0.15531]
[1768824374387,3.831,3222.2,3221.5,0.1553]
[1768824375086,3.831,3222.6,3221.5,0.1553]
[1768824376187,4.21931855,3222.6,3221.5,0.1553]
[1768824376982,3.831,3222.5,3221.6,0.1553]
[1768824377287,0.39078599,3222.7,3221.8,0.15529]
[1768824377487,1.09970148,3222.6,3221.8,0.15529]
[1768824377689,0.39078599,3222.7,3221.8,0.15529]
[1768824377883,1.09970376,3222.6,3221.8,0.15529]
[1768824378086,3.831,3223.1,3222.1,0.15527]
[1768824378289,1.09941909,3223.0,3222.1,0.15527]
[1768824378591,3.831,3223.1,3222.1,0.15527]
[1768824378592,1.09941909,3222.9,3222.1,0.15527]
[1768824378781,1.09941909,3222.8,3222.1,0.15527]
[1768824378980,3.831,3223.1,3222.1,0.15527]
[1768824379184,0.00225963,3222.8,3222.1,0.15527]
[1768824386095,0.00225963,3222.8,3222.1,2.85627]
[1768824388097,0.00225963,3222.8,3222.2,0.15527]
[1768824391392,3.831,3223.1,3222.1,2.701]
[1768824391592,1.09705102,3223.0,3222.1,2.701]
[1768824391791,3.831,3223.1,3222.1,2.701]
[1768824391992,1.09705038,3223.0,3222.1,2.701]
[1768824392299,3.831,3223.1,3222.1,2.701]
[1768824392500,1.09707618,3223.0,3222.1,2.701]
[1768824392796,3.83494227,3223.1,3222.1,2.701]
[1768824392797,3.831,3222.9,3222.4,0.15526]
[1768824393098,3.831,3222.9,3222.4,0.15839013]
[1768824393902,3.831,3222.9,3222.4,1.40368265]
[1768824394899,3.3950517,3222.9,3222.4,1.40368265]
[1768824396798,3.0669717,3223.6,3222.7,1.24529252]
[1768824397002,1.09611465,3223.5,3223.0,1.24529252]
[1768824397203,1.09611465,3223.4,3223.0,1.24529252]
[1768824397403,3.0669717,3223.6,3223.0,1.24529252]
[1768824397600,3.0669717,3223.6,3222.8,1.24529252]
[1768824397601,1.09605046,3223.5,3222.8,1.24529252]
[1768824397795,1.09605046,3223.4,3222.8,1.24529252]
[1768824397991,0.00381834,3223.5,3222.8,1.24529252]
[1768824398191,1.09604955,3223.4,3222.8,1.24529252]
[1768824398398,0.00381834,3223.5,3222.8,1.24529252]
[1768824398604,1.09611394,3223.4,3222.8,1.24529252]
[1768824398795,0.00381834,3223.5,3222.8,1.24529252]
[1768824398996,1.0961136,3223.4,3222.8,1.24529252]
[1768824399203,0.00381834,3223.5,3222.8,1.24529252]
[1768824399405,1.09624515,3223.4,3222.8,1.24529252]
[1768824399594,0.00381834,3223.5,3222.8,1.24529252]
[1768824399795,1.09624515,3223.4,3222.8,1.24529252]
[1768824400005,0.00381834,3223.5,3222.8,1.24529252]
[1768824400303,1.09644965,3223.4,3222.8,1.24529252]
[1768824400602,0.00381834,3223.5,3222.8,1.24529252]
[1768824400793,1.09644983,3223.4,3222.8,1.24529252]
[1768824400990,0.00381834,3223.5,3222.8,1.24529252]
[1768824401198,1.09645043,3223.4,3222.8,1.24529252]
[1768824401399,1.09645043,3223.3,3222.8,1.24529252]
[1768824401601,0.00381834,3223.5,3222.8,1.24529252]
[1768824401902,1.09656776,3223.4,3222.8,1.24529252]
[1768824402096,1.09656776,3223.3,3222.8,1.24529252]
[1768824402298,0.00381834,3223.5,3222.8,1.24529252]
[1768824402601,1.09673708,3223.4,3222.8,1.24529252]
[1768824402905,0.32114831,3223.8,3223.3,1.24529252]
[1768824403095,0.32114831,3223.8,3223.1,1.24529252]
[1768824403795,0.32482379,3223.8,3223.0,0.15523]
[1768824403992,1.57011631,3223.8,3222.5,40.8]
[1768824404196,0.32114831,3223.7,3222.5,2.71]
[1768824404608,0.32114831,3223.7,3222.6,1.24529252]
[1768824405506,0.32114831,3223.5,3222.4,0.15839013]
[1768824405700,0.32114831,3223.2,3222.4,0.00313013]
[1768824414910,0.34030124,3223.0,3222.4,0.00313013]
[1768824415112,0.34030124,3222.8,3222.4,0.00313013]
[1768824415313,0.34030124,3222.8,3221.9,1.40057252]
[1768824416213,0.34030124,3222.8,3221.9,1.40447056]
[1768824420916,0.34030124,3222.8,3221.9,0.15917804]
[1768824421122,1.24529252,3223.1,3221.9,0.15917804]
[1768824421123,0.34030124,3222.6,3221.9,0.15917804]
[1768824422422,3.0669717,3223.2,3222.1,0.15527]
[1768824422612,1.43347233,3223.1,3222.1,0.15527]
[1768824422811,1.43347233,3223.0,3222.1,0.15527]
[1768824423015,1.09317109,3222.9,3222.1,0.15527]
[1768824423219,1.43347233,3222.9,3222.1,0.15527]
[1768824423420,1.09317109,3222.8,3222.1,0.15527]
[1768824424019,0.34030124,3222.7,3222.1,0.15527]
[1768824424926,3.40727294,3222.6,3222.1,0.15527]
[1768824429326,0.34030124,3222.6,3222.1,0.15527]
[1768824435326,1.09772536,3222.5,3222.1,0.15527]
[1768824435527,0.34030124,3222.6,3222.1,0.15527]
[1768824435726,1.09773666,3222.5,3222.1,0.15527]
[1768824435934,0.34030124,3222.6,3222.1,0.15527]
[1768824436231,1.09773302,3222.5,3222.1,0.15527]
[1768824436433,0.34030124,3222.6,3222.1,0.15527]
[1768824436614,0.71750541,3222.5,3222.4,0.15526]
[1768824436819,2.01172035,3223.4,3222.4,1.40055252]
[1768824437016,2.01172035,3223.4,3222.7,1.24529252]
[1768824437223,0.34030124,3223.3,3222.7,1.24529252]
[1768824437735,0.34030124,3223.3,3222.5,1.24529252]
[1768824438121,0.34030124,3223.3,3222.4,0.15526]
[1768824445439,0.28768885,3223.1,3222.4,0.15526]
[1768824448041,0.28768885,3223.1,3222.4,0.15526]
[1768824448942,0.28768885,3222.9,3222.4,0.15526]
[1768824449140,0.28768885,3222.7,3222.4,0.15526]
[1768824449437,0.28768885,3222.7,3222.1,1.24529252]
[1768824449644,0.28768885,3222.7,3222.4,0.15526]
[1768824450231,0.28768885,3222.7,3222.1,1.24529252]
[1768824450531,0.28768885,3222.7,3221.9,0.00389804]
[1768824450740,0.28768885,3222.7,3221.9,2.71589804]
[1768824451446,0.28768885,3222.7,3221.9,2.87117804]
[1768824451941,0.28768885,3222.7,3222.0,1.24529252]
[1768824452943,0.28768885,3222.7,3222.0,1.24557153]
[1768824454737,0.28768885,3222.7,3221.9,2.87617804]
[1768824456046,0.28768885,3222.7,3221.9,2.87917804]
[1768824459453,0.28768885,3222.7,3221.9,0.15917804]
[1768824459651,0.28768885,3222.7,3221.9,2.88517804]
[1768824463149,3.35466055,3222.7,3221.9,2.88517804]
[1768824463350,3.35466055,3222.7,3221.9,0.15917804]
[1768824463551,3.35466055,3222.7,3221.9,2.89217804]
[1768824465857,3.35466055,3222.7,3222.0,0.15528]
[1768824466461,3.35466055,3222.7,3222.1,0.15527]
[1768824466669,0.29586269,3223.1,3222.2,0.15527]
[1768824466866,1.08529654,3223.0,3222.2,0.15527]
[1768824467064,0.29586269,3223.1,3222.2,0.15527]
[1768824467065,1.08529654,3222.9,3222.2,0.15527]
[1768824467266,1.08529654,3222.8,3222.2,0.15527]
[1768824467470,1.08529654,3222.7,3222.2,0.15527]
[1768824467669,0.29586269,3223.1,3222.2,0.15527]
[1768824467873,1.08550746,3223.0,3222.2,0.15527]
[1768824468068,1.08550746,3222.9,3222.2,0.15527]
[1768824468265,1.38137015,3222.8,3222.2,2.89527]
[1768824468466,0.29586269,3222.6,3222.2,2.89527]
[1768824469969,0.29586269,3223.1,3222.2,2.89527]
[1768824470169,0.29586269,3223.5,3222.7,0.15524]
[1768824471070,0.00367548,3223.8,3222.8,1.22661593]
[1768824471275,0.00367548,3223.8,3223.1,0.15522]
[1768824471670,0.29586269,3224.9,3223.2,0.15522]
[1768824471873,0.29586269,3224.9,3223.4,0.15521]
[1768824472571,0.29931486,3224.9,3223.4,0.15521]
[1768824472870,0.29931486,3224.9,3223.5,0.15521]
[1768824477881,0.31196027,3224.7,3223.5,0.15521]
[1768824478083,0.31196027,3224.5,3223.5,0.15521]
[1768824482186,0.31196027,3224.3,3223.5,0.15521]
[1768824482386,0.31196027,3224.1,3223.5,0.15521]
[1768824482584,0.38496027,3224.1,3223.5,0.15521]
[1768824496284,0.31196027,3223.9,3223.5,0.15521]
[1768824496591,0.31196027,3223.9,3222.9,0.15523]
[1768824500395,1.05315188,3223.8,3222.9,0.15523]
[1768824500696,0.31196027,3223.9,3222.9,0.15523]
[1768824500897,1.05315212,3223.8,3222.9,0.15523]
[1768824501089,0.31196027,3223.9,3222.9,0.15523]
[1768824501291,1.05314965,3223.8,3222.9,0.15523]
[1768824501588,0.31196027,3223.9,3222.9,0.15523]
[1768824501790,1.36511144,3223.8,3222.9,0.15523]
[1768824501983,0.31196027,3223.8,3222.9,0.15523]
[1768824503099,0.31196027,3223.8,3223.0,0.15523]
[1768824506399,1.05431007,3223.7,3223.0,0.15523]
[1768824506598,0.31196027,3223.8,3223.0,0.15523]
[1768824506796,1.05443534,3223.7,3223.0,0.15523]
[1768824507000,0.31196027,3223.8,3223.0,0.15523]
[1768824507297,1.0542092,3223.7,3223.1,0.15523]
[1768824507502,0.073,3224.1,3223.3,0.15522]
[1768824507701,1.05420096,3224.0,3223.3,0.15522]
[1768824507896,1.05420096,3223.9,3223.3,0.15522]
[1768824508095,1.05420096,3223.8,3223.3,0.15522]
[1768824508295,1.05420096,3223.7,3223.3,0.15522]
[1768824508599,0.33388258,3224.1,3223.3,0.15522]
[1768824508787,1.05300314,3224.0,3223.3,0.15522]
[1768824508992,1.05300314,3223.9,3223.3,0.15522]
[1768824509195,0.26088258,3223.7,3223.3,0.15522]
[1768824509397,0.26088258,3223.7,3222.8,2.742]
[1768824510503,0.26088258,3223.7,3222.3,42.02661593]
[1768824510703,0.26088258,3223.7,3222.9,2.90223]
[1768824510902,0.26088258,3223.7,3222.9,0.15523]
[1768824511104,0.26088258,3223.7,3222.9,2.90323]
[1768824511305,0.26088258,3223.7,3223.0,0.15523]
[1768824517304,0.073,3224.1,3222.9,1.24491687]
[1768824517509,1.05410605,3224.0,3223.4,0.15521]
[1768824517711,0.073,3224.1,3223.5,0.15521]
[1768824518010,0.26088258,3223.9,3223.5,0.15521]
[1768824518711,0.26088258,3224.6,3223.7,0.15519]
[1768824518896,0.26088258,3224.2,3221.5,7.22803579]
[1768824519103,1.26275435,3224.5,3221.5,7.22803579]
[1768824519104,1.50579945,3223.2,3221.6,1.24491687]
[1768824519407,1.30513186,3223.1,3222.3,0.15526]
[1768824519608,0.25154052,3223.1,3222.3,0.15526]
[1768824519909,1.05081962,3223.0,3222.3,0.15526]
[1768824520212,0.25154052,3223.1,3222.3,0.15526]
[1768824526716,0.25154052,3223.1,3222.3,2.92226]
[1768824530223,0.25154052,3223.7,3222.6,1.24491687]
[1768824531614,0.25154052,3224.1,3223.1,1.24491687]
[1768824531920,0.25154052,3224.1,3223.1,4.17214687]